fUST/lending_fUST_20250121
["ID","MTS","AMOUNT","RATE_DAILY","PERIOD"]
[349721126,1737394242538,-1687.84516448,0.00021947,2]
[349721128,1737394242548,-152.0,0.00021978,2]
[349721130,1737394242558,-500.0,0.00022052,3]
[349721132,1737394242568,-500.0,0.00022052,3]
[349721134,1737394242578,-500.0,0.00022053,3]
[349721136,1737394242588,-500.0,0.00022053,3]
[349721138,1737394242600,-500.0,0.00022053,3]
[349721141,1737394242610,-500.0,0.00022053,3]
[349721143,1737394242620,-500.0,0.00022053,2]
[349721145,1737394242629,-540.0,0.00022053,2]
[349721157,1737394242736,-250.0,0.00022053,2]
[349721159,1737394242745,-500.0,0.00022053,2]
[349721161,1737394242755,-391.91201534,0.00022053,2]
[349721163,1737394242764,-394.46960695,0.00022053,2]
[349721165,1737394242774,-162.27165446,0.00022053,2]
[349721167,1737394242783,-175.0,0.00022053,2]
[349721169,1737394242793,-1716.81,0.00022053,3]
[349721171,1737394242802,-1716.81,0.00022053,3]
[349721173,1737394242812,-1716.81,0.00022053,3]
[349721175,1737394242821,-1716.81,0.00022053,3]
[349721177,1737394242831,-500.0,0.00022053,3]
[349721179,1737394242840,-500.0,0.00022054,3]
[349721180,1737394242849,-500.0,0.00022054,2]
[349721182,1737394242859,-500.0,0.00022054,3]
[349721184,1737394242868,-500.0,0.00022054,3]
[349721186,1737394242877,-500.0,0.00022054,3]
[349721188,1737394242886,-602.41196835,0.00022054,3]
[349721190,1737394242895,-500.0,0.00022054,3]
[349721192,1737394242905,-500.0,0.00022054,3]
[349721194,1737394242915,-500.0,0.00022054,3]
[349721196,1737394242924,-500.0,0.00022054,3]
[349721198,1737394242934,-500.0,0.00022054,3]
[349721200,1737394242943,-500.0,0.00022054,3]
[349721202,1737394242952,-500.0,0.00022054,3]
[349721204,1737394242961,-500.0,0.00022054,3]
[349721206,1737394242970,-501.05930482,0.00022054,3]
[349721208,1737394242985,-500.0,0.00022054,3]
[349721210,1737394242994,-500.0,0.00022054,3]
[349721212,1737394243004,-500.0,0.00022054,3]
[349721213,1737394243012,-500.0,0.00022054,3]
[349721215,1737394243022,-500.0,0.00022054,3]
[349721217,1737394243031,-500.0,0.00022054,3]
[349721219,1737394243040,-500.0,0.00022054,3]
[349721221,1737394243049,-500.0,0.00022054,3]
[349721223,1737394243058,-500.0,0.00022054,3]
[349721225,1737394243067,-500.0,0.00022054,3]
[349721227,1737394243076,-500.0,0.00022054,3]
[349721229,1737394243085,-500.0,0.00022054,3]
[349721231,1737394243097,-500.0,0.00022054,3]
[349721233,1737394243106,-500.0,0.00022054,3]
[349721235,1737394243116,-503.1017637,0.00022054,3]
[349721237,1737394243125,-500.0,0.00022054,3]
[349721239,1737394243135,-500.0,0.00022054,3]
[349721241,1737394243146,-500.0,0.00022054,3]
[349721243,1737394243155,-500.0,0.00022054,3]
[349721245,1737394243165,-500.0,0.00022054,3]
[349721247,1737394243174,-500.0,0.00022054,3]
[349721249,1737394243184,-394.21203353,0.00022054,3]
[349721251,1737394243194,-500.0,0.00022054,3]
[349721253,1737394243204,-500.0,0.00022054,3]
[349721255,1737394243213,-518.68,0.00022054,3]
[349721257,1737394243224,-500.0,0.00022054,3]
[349721259,1737394243237,-500.0,0.00022054,3]
[349721261,1737394243247,-500.0,0.00022054,3]
[349721263,1737394243256,-500.0,0.00022054,3]
[349721265,1737394243266,-500.0,0.00022054,3]
[349721267,1737394243275,-339.61899784,0.00022054,3]
[349721270,1737394243285,-499.69748432,0.00022054,3]
[349721273,1737394243295,-500.0,0.00022054,3]
[349721276,1737394243304,-500.0,0.00022054,3]
[349721279,1737394243313,-254.00863574,0.00022054,3]
[349721284,1737394243323,-308.52134638,0.00022054,3]
[349721288,1737394243333,-500.0,0.00022054,3]
[349721291,1737394243343,-500.0,0.00022054,3]
[349721294,1737394243352,-223.81653082,0.00022054,3]
[349721297,1737394243362,-500.0,0.00022054,3]
[349721299,1737394243372,-512.11185753,0.00022054,3]
[349721301,1737394243382,-500.0,0.00022054,3]
[349721303,1737394243391,-500.0,0.00022054,3]
[349721305,1737394243402,-500.0,0.00022054,3]
[349721307,1737394243414,-500.0,0.00022054,3]
[349721309,1737394243424,-500.0,0.00022054,3]
[349721311,1737394243434,-500.0,0.00022054,3]
[349721313,1737394243443,-500.0,0.00022054,3]
[349721316,1737394243453,-538.23756892,0.00022054,3]
[349721318,1737394243462,-500.0,0.00022054,3]
[349721320,1737394243473,-307.09793098,0.00022054,3]
[349721322,1737394243486,-500.0,0.00022054,3]
[349721324,1737394243496,-500.0,0.00022054,3]
[349721326,1737394243505,-500.0,0.00022054,3]
[349721328,1737394243515,-500.0,0.00022054,3]
[349721330,1737394243524,-500.0,0.00022054,3]
[349721332,1737394243534,-500.0,0.00022054,3]
[349721334,1737394243544,-500.0,0.00022054,3]
[349721336,1737394243554,-500.0,0.00022054,3]
[349721338,1737394243564,-500.0,0.00022054,3]
[349721340,1737394243573,-500.0,0.00022054,2]
[349721342,1737394243583,-500.0,0.00022054,3]
[349721344,1737394243593,-500.0,0.00022054,3]
[349721346,1737394243603,-505.61327145,0.00022054,3]
[349721348,1737394243613,-500.0,0.00022054,3]
[349721350,1737394243623,-500.0,0.00022054,3]
[349721352,1737394243633,-500.0,0.00022054,3]
[349721355,1737394243644,-500.0,0.00022054,3]
[349721357,1737394243653,-500.0,0.00022054,3]
[349721359,1737394243663,-500.0,0.00022054,3]
[349721361,1737394243673,-563.49,0.00022054,3]
[349721363,1737394243682,-500.0,0.00022054,3]
[349721365,1737394243693,-550.51535658,0.00022054,3]
[349721367,1737394243703,-500.0,0.00022054,3]
[349721369,1737394243712,-550.71,0.00022054,3]
[349721371,1737394243722,-500.0,0.00022054,3]
[349721373,1737394243735,-500.0,0.00022054,3]
[349721375,1737394243745,-500.0,0.00022054,3]
[349721377,1737394243755,-500.0,0.00022054,3]
[349721379,1737394243764,-500.0,0.00022054,3]
[349721381,1737394243774,-500.0,0.00022054,3]
[349721383,1737394243783,-500.0,0.00022054,3]
[349721385,1737394243793,-500.0,0.00022054,3]
[349721387,1737394243803,-500.0,0.00022054,3]
[349721389,1737394243813,-500.0,0.00022054,3]
[349721391,1737394243823,-515.72813484,0.00022054,3]
[349721393,1737394243832,-500.0,0.00022054,3]
[349721395,1737394243842,-500.0,0.00022054,3]
[349721397,1737394243851,-500.0,0.00022054,3]
[349721399,1737394243861,-500.0,0.00022054,3]
[349721401,1737394243871,-500.0,0.00022054,3]
[349721403,1737394243880,-500.0,0.00022054,3]
[349721405,1737394243889,-500.0,0.00022054,3]
[349721407,1737394243899,-500.0,0.00022054,3]
[349721409,1737394243909,-1737.85,0.00022054,3]
[349721411,1737394243919,-1170.52,0.00022054,3]
[349721413,1737394243930,-527.87,0.00022054,3]
[349721415,1737394243940,-510.78865784,0.00022054,3]
[349721417,1737394243952,-500.0,0.00022054,3]
[349721419,1737394243962,-500.0,0.00022054,3]
[349721421,1737394243972,-500.0,0.00022054,3]
[349721423,1737394243987,-500.0,0.00022054,3]
[349721426,1737394243997,-500.0,0.00022054,3]
[349721428,1737394244008,-500.0,0.00022054,3]
[349721430,1737394244019,-500.0,0.00022054,3]
[349721432,1737394244028,-500.0,0.00022054,3]
[349721434,1737394244039,-500.0,0.00022054,3]
[349721436,1737394244048,-500.0,0.00022054,3]
[349721438,1737394244058,-500.0,0.00022054,3]
[349721440,1737394244068,-500.0,0.00022054,3]
[349721442,1737394244077,-500.0,0.00022054,3]
[349721444,1737394244087,-500.0,0.00022054,3]
[349721446,1737394244098,-500.0,0.00022054,3]
[349721448,1737394244107,-500.0,0.00022054,3]
[349721450,1737394244117,-500.0,0.00022054,3]
[349721452,1737394244127,-500.0,0.00022054,3]
[349721454,1737394244136,-500.0,0.00022054,3]
[349721456,1737394244147,-500.0,0.00022054,3]
[349721458,1737394244157,-500.0,0.00022054,3]
[349721460,1737394244170,-500.0,0.00022054,3]
[349721462,1737394244179,-500.0,0.00022054,3]
[349721464,1737394244189,-500.0,0.00022054,3]
[349721466,1737394244199,-500.0,0.00022054,3]
[349721468,1737394244208,-500.0,0.00022054,3]
[349721470,1737394244218,-500.0,0.00022054,3]
[349721472,1737394244233,-500.0,0.00022054,3]
[349721474,1737394244244,-500.0,0.00022054,3]
[349721476,1737394244254,-500.0,0.00022054,3]
[349721478,1737394244264,-500.0,0.00022054,3]
[349721480,1737394244274,-500.0,0.00022054,3]
[349721482,1737394244284,-500.0,0.00022054,3]
[349721484,1737394244294,-500.0,0.00022054,3]
[349721486,1737394244304,-500.0,0.00022054,3]
[349721488,1737394244314,-500.0,0.00022054,3]
[349721490,1737394244325,-350.0,0.00022054,3]
[349721492,1737394244335,-490.08645015,0.00022054,3]
[349721494,1737394244346,-500.0,0.00022054,3]
[349721496,1737394244355,-500.0,0.00022054,3]
[349721498,1737394244366,-500.0,0.00022054,3]
[349721500,1737394244375,-500.0,0.00022054,3]
[349721502,1737394244386,-500.0,0.00022054,3]
[349721504,1737394244395,-500.0,0.00022054,3]
[349721506,1737394244405,-500.0,0.00022054,3]
[349721508,1737394244416,-640.18,0.00022054,3]
[349721510,1737394244427,-500.0,0.00022054,3]
[349721512,1737394244437,-500.0,0.00022054,3]
[349721514,1737394244447,-500.0,0.00022054,3]
[349721516,1737394244457,-434.17084414,0.00022054,3]
[349721518,1737394244467,-280.44625145,0.00022054,3]
[349721519,1737394244478,-500.0,0.00022054,3]
[349721521,1737394244488,-658.369603,0.00022152,2]
[349721523,1737394244497,-500.0,0.00022189,3]
[349721526,1737394244507,-500.0,0.00022189,3]
[349721528,1737394244516,-500.0,0.0002219,3]
[349721530,1737394244527,-500.0,0.0002219,3]
[349721532,1737394244536,-500.0,0.0002219,3]
[349721533,1737394244545,-500.0,0.0002219,3]
[349721535,1737394244554,-1716.81,0.0002219,3]
[349721537,1737394244564,-1716.81,0.0002219,3]
[349721539,1737394244574,-500.0,0.0002219,3]
[349721541,1737394244583,-500.0,0.00022191,3]
[349721543,1737394244593,-500.0,0.00022191,3]
[349721545,1737394244602,-500.0,0.00022191,3]
[349721547,1737394244612,-500.0,0.00022191,3]
[349721549,1737394244621,-500.0,0.00022191,3]
[349721551,1737394244630,-500.0,0.00022191,3]
[349721553,1737394244640,-500.0,0.00022191,3]
[349721555,1737394244649,-500.0,0.00022191,3]
[349721557,1737394244658,-500.0,0.00022191,3]
[349721559,1737394244667,-500.0,0.00022191,3]
[349721561,1737394244677,-258.75745228,0.00022191,3]
[349721564,1737394244686,-500.0,0.00022191,3]
[349721565,1737394244696,-500.0,0.00022191,3]
[349721567,1737394244706,-500.0,0.00022191,3]
[349721570,1737394244715,-500.0,0.00022191,3]
[349721571,1737394244724,-500.0,0.00022191,3]
[349721573,1737394244737,-557.34060511,0.00022191,3]
[349721575,1737394244747,-500.0,0.00022191,3]
[349721577,1737394244757,-500.0,0.00022191,3]
[349721579,1737394244767,-500.0,0.00022191,3]
[349721581,1737394244776,-500.0,0.00022191,3]
[349721583,1737394244786,-500.0,0.00022191,3]
[349721585,1737394244796,-500.0,0.00022191,3]
[349721587,1737394244806,-500.0,0.00022191,3]
[349721589,1737394244816,-500.0,0.00022191,3]
[349721591,1737394244825,-500.0,0.00022191,3]
[349721593,1737394244834,-500.0,0.00022191,3]
[349721595,1737394244843,-500.0,0.00022191,3]
[349721597,1737394244853,-500.0,0.00022191,3]
[349721599,1737394244862,-500.0,0.00022191,3]
[349721601,1737394244873,-500.0,0.00022191,3]
[349721603,1737394244882,-500.0,0.00022191,3]
[349721605,1737394244891,-500.0,0.00022191,3]
[349721607,1737394244901,-254.02952928,0.00022191,3]
[349721609,1737394244910,-521.72516624,0.00022191,3]
[349721611,1737394244920,-500.0,0.00022191,3]
[349721613,1737394244929,-500.0,0.00022191,3]
[349721615,1737394244938,-500.0,0.00022191,3]
[349721617,1737394244948,-500.0,0.00022191,3]
[349721619,1737394244957,-500.0,0.00022191,2]
[349721621,1737394244966,-500.0,0.00022191,3]
[349721623,1737394244982,-500.0,0.00022191,3]
[349721625,1737394244992,-500.0,0.00022191,3]
[349721627,1737394245002,-267.89,0.00022191,3]
[349721639,1737394245101,-500.0,0.00022191,3]
[349721641,1737394245112,-500.0,0.00022191,3]
[349721643,1737394245122,-500.0,0.00022191,3]
[349721645,1737394245131,-618.64597035,0.00022191,3]
[349721647,1737394245141,-500.0,0.00022191,3]
[349721649,1737394245156,-500.0,0.00022191,3]
[349721651,1737394245167,-500.0,0.00022191,3]
[349721653,1737394245176,-500.0,0.00022191,3]
[349721655,1737394245187,-500.0,0.00022191,3]
[349721657,1737394245196,-500.0,0.00022191,3]
[349721659,1737394245206,-500.0,0.00022191,3]
[349721661,1737394245215,-500.0,0.00022191,3]
[349721663,1737394245226,-1737.85,0.00022191,3]
[349721665,1737394245237,-1170.52,0.00022191,3]
[349721667,1737394245247,-527.87,0.00022191,3]
[349721669,1737394245256,-500.0,0.00022191,3]
[349721671,1737394245265,-500.0,0.00022191,3]
[349721673,1737394245274,-604.71202485,0.00022191,3]
[349721675,1737394245283,-500.0,0.00022191,3]
[349721677,1737394245293,-500.0,0.00022191,3]
[349721679,1737394245303,-170.47568167,0.00022191,3]
[349721681,1737394245313,-500.0,0.00022191,3]
[349721683,1737394245323,-500.0,0.00022191,3]
[349721685,1737394245332,-241.68578211,0.00022191,3]
[349721687,1737394245342,-500.0,0.00022191,3]
[349721689,1737394245351,-500.0,0.00022191,3]
[349721691,1737394245360,-500.0,0.00022191,3]
[349721693,1737394245370,-500.0,0.00022191,3]
[349721695,1737394245379,-500.0,0.00022191,3]
[349721696,1737394245389,-500.0,0.00022191,3]
[349721697,1737394245399,-500.0,0.00022191,3]
[349721698,1737394245409,-500.0,0.00022191,3]
[349721699,1737394245418,-500.0,0.00022191,3]
[349721700,1737394245428,-500.0,0.00022191,3]
[349721701,1737394245438,-517.13008383,0.00022191,3]
[349721702,1737394245447,-500.0,0.00022191,3]
[349721703,1737394245456,-500.0,0.00022191,3]
[349721704,1737394245466,-500.0,0.00022191,3]
[349721705,1737394245478,-500.0,0.00022191,3]
[349721706,1737394245488,-500.0,0.00022191,3]
[349721707,1737394245498,-500.0,0.00022191,3]
[349721708,1737394245507,-500.0,0.00022191,3]
[349721709,1737394245516,-500.0,0.00022191,3]
[349721710,1737394245527,-500.0,0.00022191,3]
[349721711,1737394245537,-500.0,0.00022191,3]
[349721713,1737394245546,-640.18,0.00022191,3]
[349721714,1737394245556,-500.0,0.00022191,3]
[349721716,1737394245566,-500.0,0.00022191,3]
[349721718,1737394245575,-500.0,0.00022191,3]
[349721720,1737394245585,-593.03482694,0.00022289,2]
[349721722,1737394245594,-1716.81,0.00022326,3]
[349721724,1737394245604,-500.0,0.00022327,3]
[349721727,1737394245614,-500.0,0.00022327,3]
[349721729,1737394245624,-1716.81,0.00022327,3]
[349721731,1737394245633,-336.28635912,0.00022327,3]
[349721733,1737394245643,-335.79061621,0.00022328,3]
[349721735,1737394245652,-500.0,0.00022328,3]
[349721737,1737394245662,-500.0,0.00022328,3]
[349721739,1737394245671,-500.0,0.00022328,3]
[349721741,1737394245680,-448.03858931,0.00022328,3]
[349721742,1737394245690,-500.0,0.00022328,3]
[349721745,1737394245699,-500.0,0.00022328,3]
[349721746,1737394245709,-500.0,0.00022328,3]
[349721748,1737394245719,-504.80503079,0.00022328,3]
[349721751,1737394245732,-259.74513049,0.00022328,3]
[349721752,1737394245742,-500.0,0.00022328,3]
[349721755,1737394245751,-500.0,0.00022328,3]
[349721756,1737394245760,-500.0,0.00022328,3]
[349721758,1737394245770,-500.0,0.00022328,3]
[349721760,1737394245779,-500.0,0.00022328,3]
[349721763,1737394245789,-537.74628432,0.00022328,3]
[349721765,1737394245799,-534.38206939,0.00022328,3]
[349721767,1737394245808,-635.25554884,0.00022328,3]
[349721768,1737394245818,-500.0,0.00022328,3]
[349721771,1737394245828,-264.03311846,0.00022328,3]
[349721772,1737394245838,-242.59931682,0.00022328,3]
[349721774,1737394245849,-500.0,0.00022328,3]
[349721776,1737394245860,-500.0,0.00022328,2]
[349721778,1737394245871,-500.0,0.00022328,3]
[349721780,1737394245882,-500.0,0.00022328,3]
[349721782,1737394245892,-500.0,0.00022328,3]
[349721784,1737394245902,-533.94,0.00022328,3]
[349721786,1737394245911,-500.0,0.00022328,3]
[349721788,1737394245921,-500.0,0.00022328,3]
[349721790,1737394245931,-180.78,0.00022328,3]
[349721792,1737394245940,-500.0,0.00022328,3]
[349721794,1737394245950,-500.0,0.00022328,3]
[349721796,1737394245960,-1737.85,0.00022328,3]
[349721799,1737394245970,-1170.52,0.00022328,3]
[349721801,1737394245981,-527.87,0.00022328,3]
[349721803,1737394245990,-500.0,0.00022328,3]
[349721805,1737394246000,-203.26,0.00022328,3]
[349721806,1737394246010,-500.0,0.00022328,3]
[349721808,1737394246019,-500.0,0.00022328,3]
[349721810,1737394246028,-500.0,0.00022328,3]
[349721813,1737394246038,-500.0,0.00022328,3]
[349721815,1737394246050,-300.0,0.00022328,3]
[349721817,1737394246059,-500.0,0.00022328,3]
[349721819,1737394246068,-500.0,0.00022328,3]
[349721821,1737394246078,-500.0,0.00022328,3]
[349721823,1737394246087,-500.0,0.00022328,3]
[349721825,1737394246098,-500.0,0.00022328,3]
[349721827,1737394246108,-286.38185619,0.00022328,3]
[349721830,1737394246117,-500.0,0.00022328,3]
[349721833,1737394246126,-500.0,0.00022328,3]
[349721835,1737394246135,-500.0,0.00022328,3]
[349721837,1737394246145,-500.0,0.00022328,3]
[349721839,1737394246155,-500.0,0.00022328,3]
[349721841,1737394246168,-500.0,0.00022328,3]
[349721843,1737394246177,-640.18,0.00022328,3]
[349721845,1737394246188,-500.0,0.00022328,3]
[349721847,1737394246197,-500.0,0.00022464,3]
[349721849,1737394246207,-500.0,0.00022464,3]
[349721851,1737394246216,-500.0,0.00022465,3]
[349721854,1737394246229,-549.06630047,0.00022465,3]
[349721857,1737394246240,-500.0,0.00022465,3]
[349721859,1737394246249,-457.79,0.00022465,3]
[349721861,1737394246258,-591.51,0.00022465,3]
[349721863,1737394246268,-500.0,0.00022465,2]
[349721865,1737394246278,-500.0,0.00022465,3]
[349721867,1737394246288,-469.34861853,0.00022465,3]
[349721869,1737394246298,-500.0,0.00022465,3]
[349721871,1737394246308,-500.0,0.00022465,3]
[349721873,1737394246318,-500.0,0.00022465,3]
[349721875,1737394246328,-1737.85,0.00022465,3]
[349721878,1737394246338,-1170.52,0.00022465,3]
[349721880,1737394246348,-527.87,0.00022465,3]
[349721882,1737394246357,-500.0,0.00022465,3]
[349721884,1737394246367,-500.0,0.00022465,3]
[349721886,1737394246376,-500.0,0.00022465,3]
[349721888,1737394246387,-500.0,0.00022465,3]
[349721890,1737394246397,-500.0,0.00022465,3]
[349721892,1737394246407,-500.0,0.00022465,3]
[349721894,1737394246417,-485.86200779,0.00022465,3]
[349721896,1737394246427,-500.0,0.00022465,3]
[349721898,1737394246437,-500.0,0.00022465,3]
[349721900,1737394246446,-500.0,0.00022465,3]
[349721902,1737394246456,-439.42,0.00022465,3]
[349721904,1737394246466,-537.24,0.00022465,3]
[349721906,1737394246478,-640.18,0.00022465,3]
[349721908,1737394246488,-500.0,0.00022465,3]
[349721910,1737394246498,-658.369603,0.00022488,2]
[349721912,1737394246507,-7146.16582619,0.000225,2]
[349721914,1737394246518,-1716.81,0.000226,3]
[349721916,1737394246528,-500.0,0.00022601,3]
[349721918,1737394246538,-500.0,0.00022601,3]
[349721920,1737394246548,-500.0,0.00022602,2]
[349721922,1737394246558,-500.0,0.00022602,3]
[349721924,1737394246568,-500.0,0.00022602,3]
[349721926,1737394246578,-500.0,0.00022602,3]
[349721928,1737394246588,-1737.85,0.00022602,3]
[349721930,1737394246598,-1170.52,0.00022602,3]
[349721932,1737394246608,-527.87,0.00022602,3]
[349721934,1737394246618,-500.0,0.00022602,3]
[349721936,1737394246629,-500.0,0.00022602,3]
[349721938,1737394246639,-500.0,0.00022602,3]
[349721940,1737394246649,-279.28,0.00022602,3]
[349721942,1737394246659,-500.0,0.00022602,3]
[349721944,1737394246668,-289.88,0.00022602,3]
[349721946,1737394246678,-500.0,0.00022602,3]
[349721948,1737394246688,-550.57,0.00022602,3]
[349721950,1737394246698,-206.95,0.00022602,3]
[349721952,1737394246707,-640.18,0.00022602,3]
[349721954,1737394246718,-500.0,0.00022602,3]
[349721956,1737394246732,-313.598,0.00022624,2]
[349721958,1737394246742,-3015.95540167,0.000227,5]
[349721960,1737394246753,-1716.81,0.00022738,3]
[349721962,1737394246762,-570.3,0.00022739,2]
[349721964,1737394246772,-500.0,0.00022739,3]
[349721966,1737394246782,-500.0,0.00022739,3]
[349721969,1737394246793,-500.0,0.00022739,3]
[349721970,1737394246803,-1737.85,0.00022739,3]
[349721973,1737394246813,-1170.52,0.00022739,3]
[349721974,1737394246823,-527.87,0.00022739,3]
[349721977,1737394246833,-500.0,0.00022739,3]
[349721979,1737394246843,-500.0,0.00022739,3]
[349721980,1737394246852,-500.0,0.00022739,3]
[349721983,1737394246863,-500.0,0.00022739,3]
[349721985,1737394246872,-500.0,0.00022739,3]
[349721987,1737394246881,-640.18,0.00022739,3]
[349721989,1737394246891,-500.0,0.00022739,3]
[349721991,1737394246901,-658.369603,0.00022823,2]
[349721993,1737394246910,-500.0,0.00022875,3]
[349721995,1737394246919,-500.0,0.00022875,3]
[349721997,1737394246929,-500.0,0.00022876,3]
[349721999,1737394246939,-500.0,0.00022876,3]
[349722000,1737394246949,-461.0,0.00022876,3]
[349722003,1737394246959,-1737.85,0.00022876,3]
[349722004,1737394246969,-1170.52,0.00022876,3]
[349722007,1737394246983,-527.87,0.00022876,3]
[349722009,1737394246994,-500.0,0.00022876,3]
[349722011,1737394247004,-500.0,0.00022876,3]
[349722013,1737394247014,-500.0,0.00022876,3]
[349722015,1737394247024,-467.50913747,0.00022876,3]
[349722016,1737394247033,-640.18,0.00022876,3]
[349722018,1737394247043,-500.0,0.00022876,3]
[349722021,1737394247052,-300.00000002,0.0002288,2]
[349722023,1737394247062,-453.9253229,0.000229,3]
[349722025,1737394247071,-453.92532285,0.00022969,3]
[349722027,1737394247081,-200.29925064,0.00023,2]
[349722029,1737394247092,-1716.81,0.00023012,3]
[349722030,1737394247102,-500.0,0.00023013,3]
[349722033,1737394247113,-220.86,0.00023013,3]
[349722035,1737394247123,-1737.85,0.00023013,3]
[349722037,1737394247133,-1170.52,0.00023013,3]
[349722039,1737394247144,-527.87,0.00023013,3]
[349722041,1737394247156,-171.74,0.00023013,3]
[349722043,1737394247166,-500.0,0.00023013,3]
[349722045,1737394247175,-500.0,0.00023013,3]
[349722047,1737394247186,-640.18,0.00023013,3]
[349722049,1737394247196,-500.0,0.00023013,3]
[349722059,1737394247293,-453.92532285,0.00023038,3]
[349722061,1737394247305,-470.656,0.0002306,2]
[349722063,1737394247314,-453.92532285,0.00023107,3]
[349722065,1737394247325,-500.0,0.0002315,3]
[349722067,1737394247335,-1737.85,0.0002315,3]
[349722069,1737394247344,-1170.52,0.0002315,3]
[349722071,1737394247354,-527.87,0.0002315,3]
[349722073,1737394247363,-500.0,0.0002315,3]
[349722075,1737394247373,-500.0,0.0002315,3]
[349722077,1737394247382,-640.18,0.0002315,3]
[349722079,1737394247392,-500.0,0.0002315,3]
[349722082,1737394247402,-658.369603,0.00023158,2]
[349722084,1737394247412,-453.92532285,0.00023176,3]
[349722086,1737394247422,-453.92532285,0.00023245,3]
[349722088,1737394247432,-500.0,0.00023286,3]
[349722090,1737394247441,-500.0,0.00023286,3]
[349722092,1737394247451,-500.0,0.00023287,3]
[349722094,1737394247461,-1737.85,0.00023287,3]
[349722096,1737394247471,-1170.52,0.00023287,3]
[349722098,1737394247484,-527.87,0.00023287,3]
[349722100,1737394247493,-370.8800001,0.00023287,3]
[349722102,1737394247503,-500.0,0.00023287,3]
[349722104,1737394247512,-640.18,0.00023287,3]
[349722106,1737394247522,-500.0,0.00023287,3]
[349722108,1737394247532,-453.92532285,0.00023314,3]
[349722109,1737394247542,-453.92532285,0.00023383,3]
[349722112,1737394247552,-1716.81,0.00023422,3]
[349722114,1737394247562,-500.0,0.00023424,3]
[349722116,1737394247572,-1737.85,0.00023424,3]
[349722118,1737394247582,-1170.52,0.00023424,3]
[349722120,1737394247591,-527.87,0.00023424,3]
[349722122,1737394247600,-500.0,0.00023424,3]
[349722124,1737394247610,-640.18,0.00023424,3]
[349722126,1737394247619,-500.0,0.00023424,3]
[349722128,1737394247629,-453.92532285,0.00023452,3]
[349722130,1737394247640,-658.369603,0.00023493,2]
[349722132,1737394247650,-370.21,0.000235,2]
[349722134,1737394247660,-453.92532285,0.00023521,3]
[349722136,1737394247668,-500.0,0.0002356,3]
[349722138,1737394247677,-500.0,0.0002356,3]
[349722140,1737394247687,-325.15,0.00023561,3]
[349722142,1737394247697,-1737.85,0.00023561,3]
[349722144,1737394247706,-1170.52,0.00023561,3]
[349722146,1737394247715,-527.87,0.00023561,3]
[349722148,1737394247727,-500.0,0.00023561,3]
[349722150,1737394247737,-640.18,0.00023561,3]
[349722152,1737394247746,-500.0,0.00023561,3]
[349722154,1737394247756,-453.92532285,0.0002359,3]
[349722156,1737394247766,-500.0,0.00023599,2]